bitfinex/quotes_SOLUSD_20220129
["timestamp","ask_amount","ask_price","bid_price","bid_amount"]
[1643421349885,0.25,91.439,91.362,6.0]
[1643421350086,16.423,91.43,91.362,6.0]
[1643421350285,0.25,91.429,91.363,0.25]
[1643421351586,0.25,91.442,91.363,0.25]
[1643421351787,0.25,91.443,91.363,0.25]
[1643421353085,16.421,91.44,91.363,0.25]
[1643421353285,0.25,91.439,91.363,0.25]
[1643421360994,0.25,91.439,91.363,6.25]
[1643421363299,1.46027287,91.445,91.363,6.25]
[1643421363500,1.46027287,91.445,91.37,15.8]
[1643421363700,1.46027287,91.459,91.37,15.8]
[1643421363903,23.0057,91.492,91.37,15.8]
[1643421363904,1.46027287,91.464,91.381,108.5]
[1643421364099,1.46027287,91.475,91.391,6.0]
[1643421364324,1.46027287,91.483,91.393,108.5]
[1643421364505,1.46027287,91.484,91.403,6.0]
[1643421364705,1.46027287,91.488,91.41,15.8]
[1643421364908,1.46027287,91.488,91.411,0.25]
[1643421365106,1.46027287,91.489,91.42,6.0]
[1643421365307,1.46027287,91.49,91.421,0.25]
[1643421365507,1.46027287,91.491,91.422,6.0]
[1643421365706,1.46027287,91.492,91.422,6.0]
[1643421365906,1.46027287,91.493,91.423,0.25]
[1643421366105,43.92305613,91.494,91.423,0.25]
[1643421366508,0.04339797,91.496,91.423,0.25]
[1643421367110,0.04339797,91.496,91.41,15.8]
[1643421367307,0.04339797,91.496,91.411,0.25]
[1643421368006,0.04339797,91.496,91.41,15.8]
[1643421368219,16.412,91.49,91.41,15.8]
[1643421368419,0.25,91.489,91.391,22.6303]
[1643421368619,3.20669142,91.489,91.391,22.6303]
[1643421368919,2.95669142,91.488,91.391,22.6303]
[1643421369322,0.25,91.487,91.391,22.6303]
[1643421369523,0.25,91.487,91.391,21.799615]
[1643421370028,16.416,91.47,91.391,21.799615]
[1643421370230,16.416,91.47,91.39,15.8]
[1643421370231,41.14388376,91.469,91.39,15.8]
[1643421370427,41.39388376,91.469,91.39,15.8]
[1643421371828,16.417,91.46,91.39,15.8]
[1643421372237,0.25,91.459,91.39,15.8]
[1643421373344,0.25,91.468,91.39,15.8]
[1643421374147,16.419,91.45,91.371,22.7871]
[1643421374346,0.25,91.449,91.381,6.0]
[1643421374848,0.25,91.449,91.382,0.25]
[1643421375251,0.25,91.449,91.381,6.0]
[1643421375657,0.25,91.449,91.382,0.25]
[1643421376858,0.25,91.449,91.372,0.25]
[1643421378560,0.25,91.449,91.381,6.0]
[1643421378758,0.25,91.449,91.372,0.25]
[1643421379361,0.25,91.449,91.381,6.0]
[1643421379761,0.25,91.467,91.382,0.25]
[1643421379958,23.7793,91.468,91.382,0.25]
[1643421380159,1.46027287,91.475,91.39,15.8]
[1643421380360,1.46027287,91.475,91.391,0.25]
[1643421380562,1.46027287,91.475,91.4,6.0]
[1643421380762,1.46027287,91.498,91.401,23.5754]
[1643421380959,1.46027287,91.504,91.401,29.5754]
[1643421381162,43.57212028,91.503,91.411,6.0]
[1643421381460,43.57212028,91.503,91.412,0.25]
[1643421381760,45.03239315,91.503,91.412,6.25]
[1643421382060,1.46027287,91.502,91.412,6.25]
[1643421382259,1.71027287,91.501,91.412,6.25]
[1643421382460,43.57212028,91.503,91.413,2.88812701]
[1643421382660,43.57212028,91.503,91.423,6.0]
[1643421382859,43.57212028,91.503,91.424,0.25]
[1643421383085,43.57212028,91.503,91.43,6.0]
[1643421383286,43.57212028,91.503,91.431,0.25]
[1643421383484,43.57212028,91.503,91.434,6.0]
[1643421383983,43.57212028,91.503,91.435,0.25]
[1643421383984,0.25,91.502,91.435,0.25]
[1643421384487,16.409,91.51,91.435,0.25]
[1643421384884,16.409,91.51,91.432,0.25]
[1643421385084,16.41,91.5,91.422,24.3183]
[1643421385284,23.5052,91.512,91.422,24.3183]
[1643421385285,54.709,91.51,91.432,0.25]
[1643421385689,44.52000459,91.509,91.432,0.25]
[1643421385885,44.77000459,91.509,91.432,6.25]
[1643421386288,0.25,91.509,91.432,6.25]
[1643421386687,0.25,91.509,91.433,2.88812701]
[1643421386986,0.25,91.523,91.44,6.0]
[1643421387187,0.25,91.523,91.443,6.0]
[1643421387387,39.27684032,91.523,91.444,0.25]
[1643421387587,39.27684032,91.523,91.444,6.25]
[1643421394999,40.73711319,91.523,91.444,6.25]
[1643421395598,1.46027287,91.522,91.444,6.25]
[1643421395800,0.25,91.521,91.444,6.25]
[1643421397101,0.25,91.522,91.444,6.25]
[1643421397602,0.25,91.522,91.43,32.203]
[1643421397802,0.25,91.522,91.396,1.50501055]
[1643421397803,2.95669142,91.515,91.396,1.50501055]
[1643421398002,2.95669142,91.495,91.382,46.8506]
[1643421398201,1.46027287,91.493,91.382,46.8506]
[1643421398404,15.8,91.49,91.382,46.8506]
[1643421398604,1.46027287,91.487,91.382,46.8506]
[1643421398806,16.42,91.46,91.382,46.8506]
[1643421399002,41.55433564,91.459,91.382,46.8506]
[1643421399201,41.80433564,91.459,91.382,46.8506]
[1643421399402,2.95669142,91.458,91.382,46.8506]
[1643421399903,16.42,91.44,91.35,15.8]
[1643421400102,16.42,91.44,91.36,6.0]
[1643421400302,0.25,91.439,91.351,46.7634]
[1643421401002,0.25,91.439,91.361,6.0]
[1643421401404,48.4428,91.457,91.351,46.7634]
[1643421401405,43.67708615,91.429,91.351,46.7634]
[1643421401831,0.25,91.428,91.351,46.7634]
[1643421403111,16.425,91.41,91.351,46.7634]
[1643421403311,0.25,91.409,91.351,46.7634]
[1643421403714,0.25,91.409,91.352,0.25]
[1643421405414,16.425,91.4,91.352,0.25]
[1643421405614,16.425,91.4,91.318,2.88812701]
[1643421405615,36.3272352,91.399,91.345,6.0]
[1643421405812,36.5772352,91.399,91.346,0.25]
[1643421406414,36.5772352,91.399,91.33,6.0]
[1643421406816,0.25,91.399,91.328,6.0]
[1643421407219,0.25,91.399,91.328,8.88812701]
[1643421407417,0.25,91.399,91.328,2.88812701]
[1643421407617,0.25,91.399,91.338,6.0]
[1643421407820,0.25,91.399,91.339,0.25]
[1643421409843,0.25,91.402,91.339,0.25]
[1643421411448,0.25,91.409,91.339,0.25]
[1643421411647,31.9373,91.46,91.34,2.88812701]
[1643421411846,45.566,91.455,91.35,15.8]
[1643421412145,16.2119,91.474,91.35,21.8]
[1643421412345,82.85850826,91.468,91.351,26.00832701]
[1643421412547,16.417,91.45,91.361,6.0]
[1643421412747,16.417,91.45,91.362,22.8702]
[1643421412948,16.417,91.45,91.362,23.1202]
[1643421413346,0.25,91.449,91.362,23.1202]
[1643421413747,0.25,91.467,91.362,23.1202]
[1643421413950,16.42,91.43,91.372,6.0]
[1643421414148,39.50733396,91.429,91.362,23.1202]
[1643421414347,39.75733396,91.429,91.362,23.1202]
[1643421416149,16.422,91.42,91.362,23.1202]
[1643421416350,0.25,91.419,91.362,23.1202]
[1643421417451,16.423,91.41,91.326,2.88812701]
[1643421417649,16.423,91.41,91.349,6.0]
[1643421417853,0.25,91.409,91.349,6.0]
[1643421419056,16.425,91.4,91.349,6.0]
[1643421419453,43.55586293,91.399,91.349,6.0]
[1643421422255,16.427,91.39,91.341,0.25]
[1643421422457,16.427,91.39,91.34,0.25]
[1643421422657,0.25,91.389,91.324,0.25]
[1643421425360,0.25,91.398,91.324,0.25]
[1643421425960,0.25,91.398,91.323,23.2574]
[1643421426861,3.20669142,91.398,91.302,26.61012701]
[1643421427063,3.20669142,91.398,91.289,1.50501055]
[1643421427064,50.20169142,91.398,91.289,1.50501055]
[1643421427263,50.20169142,91.398,91.296,0.25]
[1643421427663,16.427,91.39,91.296,0.25]
[1643421427862,0.25,91.389,91.296,0.25]
[1643421428091,3.20669142,91.389,91.296,0.25]
[1643421428265,2.95669142,91.388,91.289,1.50501055]
[1643421428663,0.25,91.387,91.29,0.25]
[1643421429167,0.25,91.387,91.29,3.13812701]
[1643421429364,0.25,91.387,91.29,0.25]
[1643421429365,24.1146,91.387,91.29,0.25]
[1643421429768,24.1146,91.387,91.288,24.7943]
[1643421429769,2.95669142,91.386,91.289,0.25]
[1643421429969,16.429,91.38,91.289,0.25]
[1643421430371,0.25,91.379,91.289,0.25]
[1643421431374,0.25,91.385,91.289,0.25]
[1643421431774,3.20669142,91.385,91.289,0.25]
[1643421431973,16.432,91.36,91.289,0.25]
[1643421432372,42.42991014,91.359,91.289,0.25]
[1643421432572,42.42991014,91.359,91.29,0.75194341]
[1643421434075,16.434,91.35,91.299,6.0]
[1643421434277,0.25,91.349,91.3,0.25]
[1643421434678,0.25,91.349,91.3,6.25]
[1643421435277,16.432,91.37,91.3,6.25]
[1643421435476,16.432,91.37,91.301,23.8526]
[1643421435900,16.432,91.37,91.311,6.0]
[1643421436397,16.432,91.37,91.312,0.25]
[1643421436800,0.25,91.369,91.312,0.25]
[1643421436996,16.432,91.37,91.312,0.25]
[1643421437197,15.8,91.41,91.312,0.25]
[1643421437398,23.4048,91.409,91.312,23.1133]
[1643421437599,23.1548,91.409,91.322,6.0]
[1643421437896,23.1548,91.409,91.323,0.25]
[1643421438096,38.12767192,91.408,91.323,0.25]
[1643421438297,16.425,91.4,91.323,0.25]
[1643421438698,16.425,91.4,91.324,0.75194341]
[1643421438896,0.25,91.399,91.324,0.75194341]
[1643421439299,0.25,91.407,91.324,0.75194341]
[1643421439799,16.429,91.38,91.324,0.75194341]
[1643421440197,45.30661099,91.379,91.324,0.75194341]
[1643421440398,48.26330241,91.379,91.324,0.75194341]
[1643421440599,45.30661099,91.379,91.324,0.75194341]
[1643421441805,45.30661099,91.379,91.313,0.75194341]
[1643421442002,16.432,91.37,91.313,0.75194341]
[1643421442202,16.432,91.37,91.313,1.00194341]
[1643421442402,0.25,91.369,91.313,0.75194341]
[1643421443304,45.05661099,91.379,91.313,0.75194341]
[1643421443305,16.433,91.36,91.313,0.75194341]
[1643421443803,0.25,91.359,91.313,0.75194341]
[1643421444605,16.433,91.36,91.313,1.00194341]
[1643421444805,0.25,91.359,91.313,1.00194341]
[1643421445206,22.9268,91.378,91.314,0.25]
[1643421445405,45.05661099,91.379,91.314,0.25]
[1643421445807,45.05661099,91.379,91.315,0.75194341]
[1643421446808,0.25,91.378,91.315,0.75194341]
[1643421447607,16.431,91.37,91.315,0.75194341]
[1643421447807,0.25,91.369,91.315,0.75194341]
[1643421448910,0.25,91.369,91.313,1.00194341]
[1643421449511,0.25,91.369,91.323,6.0]
[1643421450109,0.25,91.378,91.313,1.00194341]
[1643421450313,0.25,91.378,91.323,6.0]
[1643421450810,0.25,91.378,91.324,0.25]
[1643421451011,22.6875,91.387,91.324,0.25]
[1643421451413,54.767,91.4,91.324,0.25]
[1643421451414,16.426,91.4,91.324,0.25]
[1643421451616,1.46027287,91.419,91.324,0.25]
[1643421451813,36.2957431,91.418,91.33,15.8]
[1643421452015,36.2957431,91.418,91.34,6.0]
[1643421452414,36.2957431,91.418,91.341,0.25]
[1643421452613,36.2957431,91.418,91.346,6.0]
[1643421452814,36.2957431,91.418,91.347,0.25]
[1643421453215,0.25,91.417,91.346,6.0]
[1643421453414,0.25,91.417,91.347,0.25]
[1643421454015,16.424,91.41,91.347,0.25]
[1643421454417,16.424,91.41,91.341,0.25]
[1643421454418,0.25,91.409,91.341,0.25]
[1643421455316,0.25,91.409,91.342,0.75194341]
[1643421457620,16.424,91.41,91.342,0.75194341]
[1643421457919,0.25,91.409,91.342,0.75194341]
[1643421458318,16.424,91.41,91.342,0.75194341]
[1643421458521,36.2957431,91.418,91.342,0.75194341]
[1643421459518,16.424,91.41,91.342,0.75194341]
[1643421460122,24.1887,91.429,91.342,0.75194341]
[1643421460421,0.25,91.428,91.351,6.0]
[1643421460619,0.25,91.428,91.352,23.2993]
[1643421460820,0.25,91.428,91.352,23.5493]
[1643421461020,0.25,91.428,91.362,6.0]
[1643421461422,0.25,91.428,91.363,0.25]
[1643421461620,59.71207949,91.43,91.363,0.25]
[1643421461621,16.42,91.43,91.363,0.25]
[1643421461820,54.733,91.45,91.363,0.25]
[1643421462020,54.733,91.45,91.363,23.4601]
[1643421462421,22.9366,91.458,91.373,6.0]
[1643421462720,42.46074258,91.442,91.373,6.0]
[1643421462920,42.46074258,91.442,91.374,0.25]
[1643421463121,0.25,91.441,91.374,0.25]
[1643421464121,42.46074258,91.442,91.375,0.75194341]
[1643421464321,42.46074258,91.442,91.375,1.00194341]
[1643421465022,42.46074258,91.442,91.385,6.0]
[1643421465222,16.419,91.44,91.375,1.00194341]
[1643421465424,0.25,91.439,91.375,0.75194341]
[1643421465624,0.25,91.439,91.376,0.25]
[1643421465822,0.25,91.439,91.375,1.00194341]
[1643421466421,0.25,91.439,91.385,6.0]
[1643421466823,0.25,91.439,91.386,0.25]
[1643421467121,0.25,91.439,91.386,0.75194341]
[1643421470322,0.25,91.439,91.377,0.75194341]
[1643421470524,0.25,91.439,91.386,6.0]
[1643421470725,22.9366,91.458,91.387,0.25]
[1643421471124,0.25,91.457,91.387,6.25]
[1643421471525,54.715,91.48,91.387,6.25]
[1643421471726,43.33097376,91.479,91.388,47.6144]
[1643421471925,43.58097376,91.479,91.39,6.0]
[1643421472124,43.58097376,91.479,91.398,6.0]
[1643421472324,24.8021,91.478,91.399,23.9565]
[1643421472727,0.25,91.477,91.399,23.9565]
[1643421472926,16.413,91.47,91.399,23.9565]
[1643421473326,0.25,91.469,91.4,0.75194341]
[1643421474928,0.25,91.469,91.409,6.0]
[1643421475329,0.25,91.469,91.41,0.25]
[1643421475729,0.25,91.469,91.41,6.25]
[1643421477028,16.415,91.46,91.411,0.75194341]
[1643421477431,0.25,91.459,91.411,0.75194341]
[1643421479934,0.25,91.459,91.401,0.75194341]
[1643421482336,0.25,91.477,91.401,0.75194341]
[1643421483537,16.413,91.47,91.401,0.75194341]
[1643421483740,32.213,91.47,91.401,0.75194341]
[1643421483938,3.20669142,91.469,91.401,0.75194341]
[1643421484359,2.95669142,91.468,91.389,0.75194341]
[1643421484760,16.418,91.45,91.389,0.75194341]
[1643421484961,44.14896005,91.448,91.389,0.75194341]
[1643421485362,0.25,91.447,91.389,0.75194341]
[1643421485559,3.20669142,91.447,91.389,0.75194341]
[1643421485761,16.418,91.44,91.389,0.75194341]
[1643421486160,0.25,91.439,91.389,0.75194341]
[1643421486360,3.20669142,91.439,91.389,0.75194341]
[1643421486559,2.95669142,91.438,91.389,0.75194341]
[1643421486759,16.421,91.43,91.389,0.75194341]
[1643421487160,27.76249142,91.429,91.35,0.75194341]
[1643421487560,2.95669142,91.428,91.35,0.75194341]
[1643421487964,0.25,91.427,91.35,0.75194341]
[1643421488364,2.95669142,91.426,91.35,0.75194341]
[1643421488566,16.427,91.41,91.35,0.75194341]
[1643421488766,67.07667165,91.409,91.35,0.75194341]
[1643421488964,70.03336307,91.409,91.35,0.75194341]
[1643421489166,2.95669142,91.408,91.35,0.75194341]
[1643421489365,0.25,91.407,91.35,0.75194341]
[1643421489766,2.95669142,91.406,91.35,0.75194341]
[1643421489968,16.426,91.4,91.35,0.75194341]
[1643421490166,16.426,91.4,91.308,0.75194341]
[1643421490367,0.25,91.399,91.308,0.75194341]
[1643421490768,15.8,91.39,91.308,0.75194341]
[1643421491268,39.87878271,91.389,91.308,0.75194341]
[1643421491669,68.63540765,91.388,91.308,0.75194341]
[1643421491868,0.25,91.387,91.308,0.75194341]
[1643421492072,16.429,91.38,91.308,0.75194341]
[1643421492269,39.49721565,91.379,91.308,0.75194341]
[1643421492671,42.45390707,91.379,91.308,0.75194341]
[1643421492873,2.95669142,91.378,91.308,0.75194341]
[1643421493274,0.25,91.377,91.308,0.75194341]
[1643421493475,24.8966,91.377,91.308,0.75194341]
[1643421493674,16.437,91.36,91.268,0.75194341]
[1643421493974,24.8966,91.359,91.268,0.75194341]
[1643421494775,24.8966,91.359,91.277,6.0]
[1643421494975,16.439,91.34,91.277,6.0]
[1643421495176,42.65608607,91.339,91.278,0.25]
[1643421495376,42.90608607,91.339,91.278,0.25]
[1643421495578,42.90608607,91.339,91.278,6.25]
[1643421495777,42.90608607,91.339,91.278,0.25]
[1643421496377,42.90608607,91.339,91.268,0.75194341]
[1643421496781,42.90608607,91.339,91.267,1.00194341]
[1643421496978,16.438,91.33,91.267,1.00194341]
[1643421497380,0.25,91.329,91.267,1.00194341]
[1643421498981,16.438,91.33,91.267,1.00194341]
[1643421499181,16.438,91.33,91.277,6.0]
[1643421499383,16.438,91.33,91.278,0.25]
[1643421499883,16.438,91.33,91.278,1.00194341]
[1643421500584,16.438,91.33,91.278,0.75194341]
[1643421501183,0.25,91.329,91.278,0.75194341]
[1643421502586,16.44,91.32,91.278,0.75194341]
[1643421502787,16.44,91.32,91.267,1.00194341]
[1643421504196,0.25,91.329,91.267,1.00194341]
[1643421504395,0.25,91.337,91.267,1.00194341]
[1643421504796,0.25,91.337,91.277,6.0]
[1643421504997,16.437,91.34,91.278,0.25]
[1643421505796,38.6937055,91.339,91.278,0.25]
[1643421506197,38.6937055,91.339,91.279,0.75194341]
[1643421506396,0.25,91.338,91.279,0.75194341]
[1643421506999,16.437,91.34,91.279,0.75194341]
[1643421507597,0.25,91.339,91.279,0.75194341]
[1643421507997,40.38582301,91.339,91.279,0.75194341]
[1643421509399,40.13582301,91.339,91.279,0.75194341]
[1643421509599,40.13582301,91.339,91.277,6.0]
[1643421509799,40.13582301,91.339,91.276,6.0]
[1643421509999,0.25,91.338,91.268,0.75194341]
[1643421511521,23.612,91.338,91.268,0.75194341]
[1643421511920,16.438,91.33,91.268,0.75194341]
[1643421512121,0.25,91.329,91.268,0.75194341]
[1643421512523,3.20669142,91.329,91.268,0.75194341]
[1643421512720,3.20669142,91.329,91.24,22.7485]
[1643421512721,2.95669142,91.328,91.242,0.75194341]
[1643421512922,16.441,91.32,91.242,0.75194341]
[1643421513324,51.12779142,91.319,91.242,0.75194341]
[1643421513727,2.95669142,91.318,91.242,0.75194341]
[1643421514125,0.25,91.317,91.242,0.75194341]
[1643421514525,2.95669142,91.316,91.242,0.75194341]
[1643421514929,0.25,91.315,91.242,0.75194341]
[1643421515127,36.37046829,91.299,91.242,0.75194341]
[1643421515328,0.25,91.298,91.242,0.75194341]
[1643421515728,0.25,91.298,91.218,0.75194341]
[1643421516230,0.25,91.298,91.227,6.0]
[1643421516428,23.3102,91.318,91.228,22.5015]
[1643421516629,23.3102,91.318,91.238,6.0]
[1643421516828,23.3102,91.318,91.239,0.25]
[1643421517028,16.442,91.31,91.239,0.25]
[1643421517831,0.25,91.309,91.239,0.25]
[1643421518231,0.25,91.309,91.239,24.883]
[1643421518431,0.25,91.316,91.239,24.883]
[1643421518634,0.25,91.316,91.229,30.2264]
[1643421518836,0.25,91.316,91.24,0.75194341]
[1643421518837,23.7339,91.316,91.24,0.75194341]
[1643421519035,16.443,91.3,91.24,0.75194341]
[1643421519433,0.22139575,91.299,91.24,0.75194341]
[1643421519835,0.22139575,91.299,91.24,6.75194341]
[1643421520241,0.22139575,91.299,91.241,0.25]
[1643421520635,0.22139575,91.299,91.25,6.0]
[1643421520837,16.2021,91.338,91.251,0.25]
[1643421521037,23.5271,91.339,91.251,6.25]
[1643421521239,0.25,91.337,91.251,6.25]
[1643421521442,0.25,91.338,91.251,6.25]
[1643421521641,0.25,91.338,91.252,29.3356]
[1643421521937,0.25,91.338,91.261,6.0]
[1643421522138,0.25,91.338,91.253,0.25]
[1643421522139,16.44,91.32,91.253,0.25]
[1643421522338,0.25,91.319,91.253,0.25]
[1643421523437,54.809,91.33,91.253,0.25]
[1643421523639,57.46021902,91.339,91.253,0.25]
[1643421524439,57.46021902,91.339,91.253,25.1787]
[1643421524639,0.25,91.338,91.263,6.0]
[1643421524839,0.25,91.338,91.264,25.1787]
[1643421525242,0.25,91.338,91.264,25.93064341]
[1643421526239,16.438,91.33,91.264,25.93064341]
[1643421526440,16.438,91.33,91.264,1.00194341]
[1643421526643,0.25,91.329,91.264,1.00194341]
[1643421526839,0.25,91.329,91.265,0.25]
[1643421527842,0.25,91.338,91.265,0.25]
[1643421528042,0.25,91.338,91.264,0.75194341]
[1643421528043,16.441,91.32,91.264,0.75194341]
[1643421528443,16.441,91.32,91.252,6.0]
[1643421528444,0.25,91.319,91.252,6.0]
[1643421528642,0.25,91.319,91.252,6.25]
[1643421528843,0.25,91.319,91.253,23.985]
[1643421529246,0.25,91.319,91.254,0.25]
[1643421531046,0.25,91.319,91.263,6.0]
[1643421531446,0.25,91.319,91.264,0.25]
[1643421531646,0.25,91.319,91.264,1.00194341]
[1643421533646,54.802,91.34,91.274,6.0]
[1643421533647,16.436,91.34,91.274,6.0]
[1643421533847,16.436,91.34,91.275,0.25]
[1643421534048,16.436,91.34,91.275,6.25]
[1643421534851,16.436,91.34,91.276,0.75194341]
[1643421535051,16.436,91.34,91.285,6.0]
[1643421535251,70.574,91.38,91.286,108.75]
[1643421535451,46.8389,91.402,91.286,108.75]
[1643421535654,1.46027287,91.416,91.301,108.5]
[1643421535855,17.16750512,91.426,91.303,108.5]
[1643421536053,40.1181877,91.425,91.313,6.0]
[1643421536257,22.8699,91.424,91.314,133.0813]
[1643421536656,22.8699,91.424,91.324,6.0]
[1643421536870,22.8699,91.424,91.325,24.5813]
[1643421537072,22.8699,91.424,91.335,6.0]
[1643421537073,16.426,91.41,91.335,6.0]
[1643421537472,16.426,91.41,91.336,0.25]
[1643421537872,0.25,91.409,91.336,0.25]
[1643421538073,16.426,91.4,91.336,0.25]
[1643421538274,0.25,91.399,91.335,6.0]
[1643421538679,0.25,91.399,91.336,1.00194341]
[1643421539473,0.25,91.399,91.346,6.0]
[1643421539875,0.25,91.399,91.347,0.25]
[1643421540674,0.25,91.399,91.346,6.0]
[1643421540875,0.25,91.399,91.347,0.25]
[1643421541774,0.25,91.399,91.348,0.75194341]
[1643421543680,16.427,91.39,91.348,0.00194341]
[1643421543879,0.25,91.389,91.348,0.00194341]
[1643421544079,3.20669142,91.389,91.348,0.00194341]
[1643421544278,26.88019142,91.388,91.348,0.00194341]
[1643421544681,3.20669142,91.387,91.348,0.00194341]
[1643421545180,2.95669142,91.386,91.348,0.00194341]
[1643421545381,0.25,91.385,91.348,0.00194341]
[1643421545578,42.01490857,91.385,91.269,0.25]
[1643421545781,2.95669142,91.384,91.269,0.25]
[1643421545980,32.235,91.38,91.269,0.25]
[1643421546382,3.20669142,91.379,91.269,0.25]
[1643421546781,2.95669142,91.378,91.268,6.0]
[1643421547183,16.435,91.35,91.268,6.0]
[1643421547381,46.4815042,91.349,91.268,6.0]
[1643421547983,46.4815042,91.349,91.269,0.25]
[1643421548483,16.437,91.34,91.269,0.25]
[1643421548786,0.25,91.339,91.259,0.25]
[1643421549883,16.439,91.33,91.259,0.25]
[1643421550285,0.25,91.329,91.259,0.25]
[1643421550885,0.25,91.329,91.23,1.50501055]
[1643421551085,44.35392685,91.319,91.23,1.50501055]
[1643421551285,0.25,91.318,91.229,47.7228]
[1643421552188,16.444,91.3,91.229,47.7228]
[1643421552385,0.25,91.299,91.23,0.25]
[1643421555492,0.25,91.299,91.239,6.0]
[1643421555994,0.25,91.299,91.24,0.25]
[1643421556292,16.444,91.3,91.24,0.25]
[1643421556695,16.444,91.3,91.241,10.62146516]
[1643421556893,16.444,91.3,91.242,0.25]
[1643421557094,16.444,91.3,91.256,0.5124]
[1643421557794,0.25,91.299,91.256,0.5124]
[1643421558995,16.446,91.29,91.256,0.5124]
[1643421559195,43.07157208,91.289,91.256,0.5124]
[1643421559396,43.32157208,91.289,91.256,0.5124]
[1643421560202,43.32157208,91.289,91.257,10.62146516]
[1643421561198,16.446,91.29,91.257,10.62146516]
[1643421561402,16.441,91.31,91.258,0.25]
[1643421562002,54.803,91.34,91.267,6.0]
[1643421562202,1.46027287,91.37,91.267,6.0]
[1643421562203,34.75388486,91.339,91.267,6.0]
[1643421562405,34.75388486,91.339,91.268,0.25]
[1643421562602,16.439,91.33,91.268,0.25]
[1643421563004,16.439,91.33,91.27,6.0]
[1643421563431,16.439,91.33,91.271,0.25]
[1643421563631,0.25,91.329,91.279,6.0]
[1643421563830,0.25,91.329,91.28,0.25]
[1643421564031,16.439,91.33,91.28,0.25]
[1643421564231,34.75388486,91.339,91.28,0.25]
[1643421564631,0.25,91.338,91.28,0.25]
[1643421565532,16.438,91.33,91.279,6.0]
[1643421565932,16.438,91.33,91.28,0.25]
[1643421566132,0.25,91.338,91.28,0.25]
[1643421566333,0.25,91.358,91.28,10.87146516]
[1643421566632,0.25,91.358,91.29,6.0]
[1643421566833,0.25,91.358,91.291,0.25]
[1643421567132,41.26174433,91.358,91.291,0.25]
[1643421567332,16.435,91.35,91.281,0.25]
[1643421567734,0.25,91.349,91.281,0.25]
[1643421567933,0.25,91.349,91.28,10.62146516]
[1643421568134,0.25,91.349,91.281,0.25]
[1643421568737,16.436,91.34,91.28,10.62146516]
[1643421569134,0.25,91.339,91.28,10.62146516]
[1643421569534,0.25,91.339,91.257,10.62146516]
[1643421569935,0.25,91.339,91.258,0.25]
[1643421570137,0.25,91.339,91.267,6.0]
[1643421570336,0.25,91.347,91.268,0.25]
[1643421570535,0.25,91.347,91.268,6.25]
[1643421570735,0.25,91.347,91.268,0.25]
[1643421571138,45.80742358,91.329,91.268,6.25]
[1643421571337,0.25,91.328,91.268,6.25]
[1643421572338,16.441,91.32,91.268,6.0]
[1643421572538,16.441,91.32,91.269,10.87146516]
[1643421572938,0.25,91.328,91.269,10.87146516]